Cogmind - Beta 14 @@@ ROGUE MODE // 2024.11.09 @ 12:09:54 Player: MarKhan Result: Destroyed by G-67 Veteran with Plasma Rifle Performance ------------- Evolutions (4) 2000 Regions Visited (16) 3200 Robots Destroyed (318) 1590 Value Destroyed (12048) 12048 Prototype IDs (44) 880 Alien Tech Used (0) 0 Bonus (6453) 6453 TOTAL SCORE: 26171 Bonus ------- High Alert Combat Kills 3502 Follower Combat Kills 490 Entered Garrisons 600 Used RIF Installer 1500 Aligned with FarCom 300 Met Data Miner 300 Friendly Fire -239 Cogmind --------- Core Integrity 0/850 Matter 185/300 Energy 100/100 System Corruption 5% Temperature Cool (9) Movement Core (1350) Ox26 Location -5/Proximity Caves Parts ------- > --- POWER (2) -------- (None) > --- PROPULSION (6) --- (None) > --- UTILITY (5) ------ Huge Storage Unit Advanced Targeting Computer Relay Coupler [NC] (11) > --- WEAPON (2) ------- (None) > --- INVENTORY (25) --- Compact Battery (200) Compact Battery (200) Compact Battery (200) High-capacity Matter Pod (200) High-capacity Matter Pod (0) 0b10 Decoder Chip [Scout] Advanced Transmission Jammer Hardened Heavy Armor Plating Hardened Heavy Armor Plating Hardened Heavy Armor Plating Improved Force Field Hacking Suite Component Analysis Suite Phase Gun Matter Neutralizer Proton Missile Launcher Proton Missile Launcher Heavy Missile Launcher Remote Datajack Peak State ------------ > --- POWER ------------ Reinforced Deuterium Engine Light Antimatter Reactor > --- PROPULSION ------- Medium Treads Improved Medium Treads Advanced Medium Treads Advanced Medium Treads Improved Heavy Treads > --- UTILITY ---------- Huge Storage Unit Advanced Targeting Computer Layered Medium Armor Plating > --- WEAPON ----------- Phase Gun Heavy Machine Gun > --- INVENTORY -------- Medium Treads High-capacity Matter Pod High-capacity Matter Pod Advanced Transmission Jammer Hardened Heavy Armor Plating Hardened Heavy Armor Plating Hardened Heavy Armor Plating Hardened Heavy Armor Plating Improved Light Armor Plating Relay Coupler [Specialist] Heavy EM Shotgun Heavy Particle Gun Matter Neutralizer Gauss Rifle Gauss Rifle Gauss Rifle Proton Missile Launcher Proton Missile Launcher Heavy Missile Launcher Heavy Missile Launcher Remote Datajack [Rating: 79] Favorites ----------- Power Light Antimatter Reactor Engine Reinforced Deuterium Engine Power Core Light Nuclear Core Reactor Light Antimatter Reactor Propulsion Light Treads Treads Light Treads Wheel Armored Huge Wheel Hover Unit Aerolev Unit Flight Unit Improved VTOL Module Utility Huge Storage Unit Device Tractor Beam Storage Huge Storage Unit Processor Advanced Targeting Computer Hackware Relay Coupler [NC] Protection Hardened Medium Armor Plating Weapon Gauss Rifle Energy Gun Small Laser Energy Cannon Matter Neutralizer Ballistic Gun Gauss Rifle Ballistic Cannon Light Cannon Launcher Proton Missile Launcher Special Weapon Remote Datajack Impact Weapon Hammer Special Melee Weapon Improved Datajack Build | -11 -10 -10 -10 -9 -8 -8 -8 -7 -7 -7 -7 -6 -6 -6 -6 -5 ------- Run | Yrd Mat Min Exi Min Mat Gar Mat Fac Gar Fac Gar Fac Low Low Dat Pro Slots Evolved 8 | . . . . . 4 . . 2 . . . 2 . . . . Power 1 | . . . . . 1 . . . . . . . . . . . Propulsion 4 | . . . . . 3 . . 1 . . . . . . . . Utility 3 | . . . . . . . . 1 . . . 2 . . . . Weapon . | . . . . . . . . . . . . . . . . . Parts Attached 323 | 7 42 . . 2 59 31 50 8 23 19 11 43 5 16 . 7 Power 28 | 1 5 . . . 9 2 6 . 2 . . 1 . 1 . 1 Engine 23 | 1 5 . . . 9 2 3 . 1 . . 1 . . . 1 Core 4 | . . . . . . . 3 . . . . . . 1 . . Reactor 1 | . . . . . . . . . 1 . . . . . . . Propulsion 54 | 2 6 . . 1 12 1 16 1 5 1 2 5 . 2 . . Treads 32 | . 4 . . . . . 15 1 4 1 2 4 . 1 . . Leg . | . . . . . . . . . . . . . . . . . Wheel 13 | 2 2 . . 1 4 1 1 . 1 . . 1 . . . . Hover 1 | . . . . . 1 . . . . . . . . . . . Flight 8 | . . . . . 7 . . . . . . . . 1 . . Utility 68 | 2 13 . . 1 4 5 7 2 4 8 1 16 2 2 . 1 Device 20 | 1 8 . . . . . . . . 2 . 6 2 1 . . Storage 6 | 1 2 . . . 2 . . . . 1 . . . . . . Processor 6 | . 2 . . . . . 1 . . . . 2 . 1 . . Hackware 12 | . . . . . 1 2 3 . 2 1 . 3 . . . . Protection 24 | . 1 . . 1 1 3 3 2 2 4 1 5 . . . 1 Artifact . | . . . . . . . . . . . . . . . . . Weapon 173 | 2 18 . . . 34 23 21 5 12 10 8 21 3 11 . 5 Energy Gun 17 | . 1 . . . 4 . 2 . 3 1 . 4 . 1 . 1 Energy Cannon 4 | . . . . . 1 . . . . 2 . 1 . . . . Ballistic Gun 67 | 2 2 . . . 16 9 9 5 4 3 4 7 2 3 . 1 Ballistic Cannon 8 | . 5 . . . 3 . . . . . . . . . . . Launcher 52 | . 5 . . . 8 10 6 . 4 1 4 4 1 6 . 3 Special Weapon 18 | . 3 . . . . 1 4 . 1 3 . 5 . 1 . . Impact Weapon 1 | . . . . . . 1 . . . . . . . . . . Slashing Weapon . | . . . . . . . . . . . . . . . . . Piercing Weapon . | . . . . . . . . . . . . . . . . . Special Melee Weapon 6 | . 2 . . . 2 2 . . . . . . . . . . Unidentified Prototypes 8 | . . . . . 7 . . . . 1 . . . . . . Corrupted Parts 1 | . . . . . . . . . . . . . . . . 1 System Corruption 4 | . . . . . . . . . . . . . . . . 4 Parts Lost 56 | . 7 . . 1 . 4 9 . 8 . 2 1 4 12 . 8 Power 10 | . 1 . . . . 1 2 . 2 . . . 1 2 . 1 Propulsion 22 | . 2 . . 1 . 2 4 . 4 . 1 1 2 4 . 1 Utility 12 | . 2 . . . . 1 2 . 2 . 1 . . 2 . 2 Weapon 12 | . 2 . . . . . 1 . . . . . 1 4 . 4 Highest Loss Streak 7 | . 7 . . 1 . 2 5 . 2 . 1 1 3 7 . 6 To Critical Strikes 1 | . . . . . . . . . . . . . . 1 . . Average Slot Usage (%) 79 | . 98 100 100 99 82 74 91 97 88 91 91 85 81 45 53 41 Engine 9 | . 13 14 14 14 17 17 13 7 6 7 7 6 2 . . 1 Reactor 1 | . . . . . . . . . . 7 7 6 6 . . . Treads 17 | . 21 . . . . . 37 44 30 38 37 31 25 1 6 1 Wheel 5 | . 6 28 28 27 16 21 1 . 5 . . . . . . . Flight 1 | . . . . . 12 . . . . . . . . 2 . . Device 3 | . 11 . . . . . . . . . . 2 3 3 6 2 Storage 8 | . 14 14 14 14 9 9 9 7 7 7 7 6 6 6 6 6 Processor 4 | . 1 14 14 12 . . . 7 7 7 7 6 8 7 13 8 Hackware 2 | . . . . . 4 . 5 . 3 . . 3 6 6 6 6 Protection 3 | . . . . 1 4 7 2 5 3 6 7 5 6 2 . 3 Energy Gun 1 | . 2 14 14 14 2 . . . 1 1 . 2 . . . . Ballistic Gun 7 | . 2 . . . 9 10 11 14 2 9 6 7 12 11 13 7 Ballistic Cannon 2 | . 13 . . . 2 . . . . . . . . . . . Launcher 4 | . 8 14 14 14 1 6 4 . 10 . 7 . . . . . Peak Build Rating 79 | 7 10 9 12 12 50 44 47 41 79 79 74 79 69 51 33 38 Average Rating 37 | 5 8 9 10 11 43 42 37 39 45 75 68 71 57 29 33 29 On Entrance 35 | . 7 9 9 12 12 42 43 30 41 79 74 66 69 48 33 33 Naked Turns . | . . . . . . . . . . . . . . . . . Heaviest Build 153 | 15 92 87 87 88 117 120 119 106 126 130 129 153 117 109 89 104 Greatest Support 193 | 26 40 26 26 32 66 66 132 136 193 193 193 175 165 70 28 28 Greatest Overweight (x) 34 | . 4 3 3 5 8 2 3 . 4 . . . 1 29 3 34 Average Overweight (x) 1 | . 1 3 3 2 1 1 . . 2 . . . . 16 3 12 Largest Inventory Capacity 25 | 8 25 25 25 25 25 25 25 25 25 25 25 25 25 25 25 25 Average Capacity 23 | 7 20 25 25 25 21 25 25 25 25 25 25 25 25 25 25 25 Most Carried 25 | 5 25 25 25 25 25 25 25 25 25 25 25 25 25 25 25 25 Average Carried 22 | 3 17 25 24 24 21 24 24 24 23 24 24 24 24 23 25 23 Final Capacity 25 | 8 25 25 25 25 25 25 25 25 25 25 25 25 25 25 25 25 Final Carried 25 | 5 25 25 25 23 25 25 25 25 25 25 25 25 25 25 25 22 Class Distribution -------------------- 72% | Mutant 21% | Scavenger-Mutant 5% | Bothacker-Mutant Dominant Class ---------------- Mutant | -10/Materials Mutant | -10/Mines Mutant | -10/Exiles Mutant | -9/Mines Mutant | -8/Materials Mutant | -8/Garrison Scavenger-Mutant | -8/Materials Scavenger-Mutant | -7/Factory Mutant | -7/Garrison Mutant | -7/Factory Scavenger-Mutant | -7/Garrison Scavenger-Mutant | -6/Factory Scavenger-Mutant | -6/Lower Caves Mutant | -6/Lower Caves Mutant | -6/Data Miner Mutant | -5/Proximity Caves Resources | -11 -10 -10 -10 -9 -8 -8 -8 -7 -7 -7 -7 -6 -6 -6 -6 -5 ----------- Run | Yrd Mat Min Exi Min Mat Gar Mat Fac Gar Fac Gar Fac Low Low Dat Pro Matter Collected 11044 | 286 1902 . 430 140 1782 1168 1801 . 584 470 634 575 350 487 . 435 Remotely 793 | . 793 . . . . . . . . . . . . . . . Salvage Created 11096 | 124 1693 . . 301 1837 1079 1597 . 1651 679 713 812 123 401 . 86 Parts 633 | 4 134 . . 22 96 69 79 . 62 48 43 46 9 13 . 8 Haulers Intercepted 11 | . 2 . . . 5 . 2 . . 2 . . . . . . Recyclers Shooed 8 | . 2 . . 2 . . 2 . . 1 . 1 . . . . Parts Field Recycled . | . . . . . . . . . . . . . . . . . Retrieved Matter . | . . . . . . . . . . . . . . . . . Parts Self-Destructed 38 | . . . . . . . . . . . . . 11 10 . 17 Prevented . | . . . . . . . . . . . . . . . . . Kills | -11 -10 -10 -10 -9 -8 -8 -8 -7 -7 -7 -7 -6 -6 -6 -6 -5 ------- Run | Yrd Mat Min Exi Min Mat Gar Mat Fac Gar Fac Gar Fac Low Low Dat Pro Combat Hostiles Destroyed 231 | . 33 . . 9 30 35 30 . 26 7 21 14 5 15 . 6 Melee 1 | . . . . . . . . . . 1 . . . . . . Guns 67 | . 7 . . . 12 6 16 . 2 4 6 9 2 3 . . Cannons 14 | . 6 . . . 6 . . . . 2 . . . . . . AOE 141 | . 20 . . 9 10 28 12 . 22 . 14 5 3 12 . 6 Classes Destroyed 20 | 2 7 . . 1 2 3 1 . 1 1 . 1 . 1 . . Worker 43 | . 31 . . 1 5 . 3 . . 1 . 2 . . . . Builder 7 | . 2 . . . 1 . 2 . . 1 . 1 . . . . Tunneler 7 | 1 1 . . 2 . . 1 . . . . 2 . . . . Hauler 11 | . 2 . . . 5 . 2 . . 2 . . . . . . Recycler 16 | 1 7 . . 2 2 . 1 . . 3 . . . . . . Mechanic 2 | . . . . . . . . . . 1 . 1 . . . . Operator 3 | . 2 . . . . . . . . 1 . . . . . . Watcher 12 | . 3 . . . 3 . 3 . . 1 . 2 . . . . Swarmer 61 | . 9 . . 4 6 16 . . 7 . 6 1 3 5 . 4 Grunt 115 | . 24 . . 4 18 6 22 . 18 2 12 6 . 3 . . Brawler 6 | . . . . . . 1 1 . . 1 . . . 3 . . Duelist 4 | . . . . . . 1 1 . . . . 1 . 1 . . Protector 2 | . . . . . . . 2 . . . . . . . . . Sentry 22 | . . . . . 5 9 3 . . 1 2 1 . 1 . . Specialist 1 | . . . . . . . . . . . . 1 . . . . Hunter 8 | . . . . . 1 . 1 . . . 1 1 1 1 . 2 Programmer 8 | . . . . . . 2 . . . 3 . 3 . . . . Behemoth 2 | . . . . . . . . . 1 . . . 1 . . . Thief 1 | . . . . . . . . . . . . . . 1 . . Assembled 1 | . . . . 1 . . . . . . . . . . . . Savage 1 | . . . . . . 1 . . . . . . . . . . Best Kill Streak 9 | 1 6 . . 6 5 8 9 . 4 4 9 8 3 9 . 4 Combat Bots Only 9 | . 5 . . 4 4 8 7 . 4 1 9 4 3 9 . 4 Max Kills in Single Turn 6 | 1 3 . . 3 2 4 4 . 3 2 5 3 3 6 . 3 Gunslinging . | . . . . . . . . . . . . . . . . . Exploded 6 | . 3 . . 3 2 4 3 . 3 . 5 2 3 6 . 3 Melee 1 | . . . . . . . . . . 1 . . . . . . Uniques/NPCs Destroyed . | . . . . . . . . . . . . . . . . . Combat | -11 -10 -10 -10 -9 -8 -8 -8 -7 -7 -7 -7 -6 -6 -6 -6 -5 -------- Run | Yrd Mat Min Exi Min Mat Gar Mat Fac Gar Fac Gar Fac Low Low Dat Pro Hostile Shots Fired 1032 | . 126 . . 10 101 74 172 . 87 63 107 64 67 88 . 73 Missed 303 | . 34 . . 2 32 25 43 . 24 19 43 23 18 19 . 21 Damage Taken 13301 | . 1240 . . 219 1027 847 2427 . 1401 856 916 885 1098 1431 . 954 Core 1813 | . 217 . . 32 138 108 127 . 183 75 70 28 192 388 . 255 Absorbed by Shields 302 | . . . . . . . . . 13 . . 211 78 . . . Reduced by Siege Mode 4 | . . . . . . . . . . . 4 . . . . . Regen/Repaired (Parts) 330 | . 55 . . . . . 137 . . 138 . . . . . . Core Remaining (%) 46 | 100 . . . . . . 32 . . . 53 . . . . . Volleys Fired 861 | 5 252 . . 33 121 55 143 . 55 47 40 48 24 24 . 14 Largest 2 | 2 2 . . 2 2 2 2 . 2 2 2 2 2 2 . 2 Hottest 143 | 40 70 . . 70 80 78 78 . 143 135 84 135 60 84 . 108 Shots Fired 1370 | 10 344 . . 47 222 94 217 . 85 84 81 78 47 39 . 22 Gun 837 | 10 130 . . 28 144 38 183 . 34 70 63 54 46 26 . 11 Cannon 182 | . 130 . . . 42 . . . . 8 . 2 . . . . Launcher 284 | . 58 . . 19 36 55 19 . 50 . 18 8 1 9 . 11 Special 67 | . 26 . . . . 1 15 . 1 6 . 14 . 4 . . Kinetic 840 | 10 206 . . . 167 38 170 . 12 69 63 28 46 23 . 8 Thermal 192 | . 80 . . 28 19 . . . 22 9 . 28 . 3 . 3 Explosive 148 | . 58 . . 19 11 21 5 . . . 10 3 1 9 . 11 Electromagnetic 149 | . . . . . 25 34 27 . 50 . 8 5 . . . . Robot Hit Streak 23 | 4 9 . . 9 8 12 12 . 14 23 13 15 12 11 . 8 Robot Miss Streak 5 | 3 5 . . 2 4 4 5 . 1 5 2 5 4 3 . 3 Penetration Max 1 | . . . . . 1 . 1 . . 1 . . . . . . Secondary Targets 4 | . 2 . . . . . 1 . . . . 1 . . . . Max Gunslinging Chain 1 | . 1 . . . . . 1 . . . . 1 . . . . Shots Hit Robots 770 | 6 151 . . 16 140 46 134 . 50 53 47 52 36 28 . 11 Core Hits 570 | 3 101 . . 21 73 51 70 . 59 22 55 55 14 36 . 10 Critical Kills 2 | . . . . . . . . . . 1 . . . 1 . . Critical Parts Destroyed 5 | . . . . . 2 . 3 . . . . . . . . . Critical Strikes 15 | . 4 . . . 4 . 3 . 2 1 . . . 1 . . Burn 3 | . . . . . 1 . . . 2 . . . . . . . Destroy 7 | . . . . . 2 . 3 . . 1 . . . 1 . . Blast 5 | . 4 . . . 1 . . . . . . . . . . . Melee Attacks 25 | . 6 . . . 11 8 . . . . . . . . . . Impact 2 | . . . . . . 2 . . . . . . . . . . Slashing . | . . . . . . . . . . . . . . . . . Piercing . | . . . . . . . . . . . . . . . . . Sneak Attacks 18 | . 6 . . . 7 5 . . . . . . . . . . Combat Hostiles . | . . . . . . . . . . . . . . . . . Follow-up Attacks . | . . . . . . . . . . . . . . . . . Damage Inflicted 27993 | 76 3776 . . 768 3553 2738 4234 . 3535 1426 2599 1796 999 1629 . 864 Guns 9598 | 76 827 . . 140 1627 415 2086 . 621 991 717 839 757 336 . 166 Cannons 1920 | . 1129 . . . 516 . . . . 240 . 35 . . . . Explosions 16307 | . 1801 . . 628 1410 2323 2027 . 2914 167 1882 922 242 1293 . 698 Melee . | . . . . . . . . . . . . . . . . . Ramming 165 | . 16 . . . . . 121 . . 28 . . . . . . Kinetic 9268 | 76 1542 . . . 1864 415 1882 . 174 965 717 442 757 336 . 98 Thermal 2815 | . 417 . . 140 368 88 . . 841 266 89 538 . . . 68 Explosive 10333 | . 1801 . . 628 404 1342 1627 . . 167 1493 638 242 1293 . 698 Electromagnetic 5412 | . . . . . 917 893 604 . 2520 . 300 178 . . . . Impact . | . . . . . . . . . . . . . . . . . Slashing . | . . . . . . . . . . . . . . . . . Piercing . | . . . . . . . . . . . . . . . . . Highest Corruption 13 | . 1 1 1 1 . 6 13 . 1 1 1 1 1 1 1 5 Average Corruption 2 | . 1 1 1 1 . 5 7 . 1 1 1 1 1 1 1 4 Corruption Purged 2 | . . . . . . . . . . 2 . . . . . . Corruption Blocked . | . . . . . . . . . . . . . . . . . Effects 239 | . 14 . . 1 . 38 61 . 11 3 15 7 2 21 2 64 Message Errors 61 | . 5 . . . . 12 12 . 4 1 2 2 . 3 . 20 Matter Fused 67 | . 6 . . 1 . 8 17 . 2 . 3 2 2 7 1 18 Heat Flow Errors 23 | . 2 . . . . 2 6 . 1 1 2 1 . 2 . 6 Energy Discharges 25 | . . . . . . 4 9 . . . 2 . . 2 1 7 Parts Fused 1 | . . . . . . . . . 1 . . . . . . . Data Loss (minor) 29 | . . . . . . 7 9 . . . 2 . . 3 . 8 Data Loss (major) 10 | . . . . . . 3 2 . 2 . 1 . . . . 2 Misfires 12 | . 1 . . . . 1 1 . 1 . 3 1 . 2 . 2 Alerts 6 | . . . . . . . 1 . . 1 . 1 . 2 . 1 Weapon Failures 5 | . . . . . . 1 4 . . . . . . . . . Overload Shots . | . . . . . . . . . . . . . . . . . Overflow Damage 572 | . 52 . . 48 33 86 133 . 21 5 14 32 . 148 . . Projectiles 3 | . 2 . . . . . . . . 1 . . . . . . Explosions 540 | . 50 . . 48 33 86 104 . 21 4 14 32 . 148 . . Melee 29 | . . . . . . . 29 . . . . . . . . . Knockbacks 15 | . 12 . . . 2 . 1 . . . . . . . . . Impact 1 | . . . . . . . 1 . . . . . . . . . Kinetic 14 | . 12 . . . 2 . . . . . . . . . . . Secondary . | . . . . . . . . . . . . . . . . . Self-Inflicted Damage 1595 | . 235 . . 135 48 139 336 . 101 . 90 272 41 171 . 27 Shots 62 | . 8 . . 5 2 6 7 . 10 . 5 11 2 5 . 1 Rammed 18 | . 9 . . . . . 6 . . 3 . . . . . . Targets Rammed 21 | . 9 . . . . . 7 . . 5 . . . . . . Kicked . | . . . . . . . . . . . . . . . . . Crushed 3 | . . . . . . . 1 . . 2 . . . . . . Highest Temperature 513 | . 221 . . 42 469 260 462 . 186 381 360 462 513 219 . 229 Average Temperature 93 | . 30 . . 16 102 51 103 . 50 125 122 71 196 52 . 96 Received Heat Transfer 3972 | . 555 . . 6 468 216 999 . 339 183 231 47 748 63 . 117 Effects 30 | . . . . . 9 . 2 . . 7 4 6 2 . . . Shutdowns 11 | . . . . . 2 . 1 . . 4 1 3 . . . . Energy Bleed 8 | . . . . . 4 . . . . 2 . 1 1 . . . Interference 7 | . . . . . 2 . 1 . . . 3 1 . . . . Short Circuit 2 | . . . . . 1 . . . . . . . 1 . . . Damage (minor) 2 | . . . . . . . . . . 1 . 1 . . . . Siege Activations 3 | . . . . . . . . . . . 2 1 . . . . Total Turns 33 | . . . . . . . . . . . 23 10 . . . . Longest Duration 15 | . . . . . . . . . . . 15 10 . . . . Robots Corrupted 12 | . . . . . 2 1 3 . 5 . 1 . . . . . Combat Hostiles 8 | . . . . . 2 1 2 . 2 . 1 . . . . . Parts Fried 28 | . . . . . 3 5 3 . 15 . 2 . . . . . Impact Corruptions 2 | . . . . . . . 2 . . . . . . . . . Robots Melted . | . . . . . . . . . . . . . . . . . Combat Hostiles . | . . . . . . . . . . . . . . . . . Parts Melted 3 | . . . . . 1 . . . . . . 2 . . . . Heat Transferred 4972 | . 925 . . 300 692 100 . . 1425 259 100 1021 . . . 150 Parts Sabotaged 3 | . . . . . . . . . . . . 3 . . . . Parts Stolen . | . . . . . . . . . . . . . . . . . Parts Stripped . | . . . . . . . . . . . . . . . . . Power Chain Reactions 16 | . . . . . 2 3 1 . 8 . 1 1 . . . . Alert | -11 -10 -10 -10 -9 -8 -8 -8 -7 -7 -7 -7 -6 -6 -6 -6 -5 ------- Run | Yrd Mat Min Exi Min Mat Gar Mat Fac Gar Fac Gar Fac Low Low Dat Pro Peak Influence 1947 | 10 1263 490 . 134 676 1947 1520 694 1577 858 1607 949 . . . . Initial 949 | . 6 490 . . 44 398 949 691 485 816 553 843 . . . . Average 899 | 3 867 490 . 110 325 1451 1190 692 1026 727 1147 805 . . . . Maximum Alert Level 5 | . 4 2 . . 2 5 4 2 4 3 5 3 . . . . Low Security (%) 6 | 100 3 . . 100 23 . . . . . . . . . . . Level 1 6 | . 2 . . . 50 . . . . . . . . . . . Level 2 18 | . 13 100 . . 26 11 . 100 24 49 20 3 . . . . Level 3 37 | . 55 . . . . 11 24 . 33 50 28 96 . . . . Level 4 24 | . 24 . . . . 18 75 . 42 . 42 . . . . . Level 5 7 | . . . . . . 58 . . . . 7 . . . . . High Security . | . . . . . . . . . . . . . . . . . Max Security . | . . . . . . . . . . . . . . . . . Squads Dispatched 40 | . 11 . . . 6 . 9 . . 6 . 6 . 1 . 1 Investigation 16 | . 9 . . . 2 . 4 . . . . 1 . . . . Extermination 5 | . . . . . . . . . . 2 . 3 . . . . Reinforcement 8 | . 2 . . . 1 . 2 . . 3 . . . . . . Assault 8 | . . . . . . . 3 . . 1 . 2 . 1 . 1 Garrison 3 | . . . . . 3 . . . . . . . . . . . Intercept . | . . . . . . . . . . . . . . . . . Searches Triggered . | . . . . . . . . . . . . . . . . . Construction Impeded 2 | . . . . . . . . . . 2 . . . . . . Haulers Reinforced 1 | . . . . . . . . . . 1 . . . . . . Active Scanning Responses . | . . . . . . . . . . . . . . . . . Cargo Convoy Interrupts . | . . . . . . . . . . . . . . . . . Stealth | -11 -10 -10 -10 -9 -8 -8 -8 -7 -7 -7 -7 -6 -6 -6 -6 -5 --------- Run | Yrd Mat Min Exi Min Mat Gar Mat Fac Gar Fac Gar Fac Low Low Dat Pro Distress Signals 10 | . . . . 1 4 . 3 . 1 1 . . . . . . Communications Jammed . | . . . . . . . . . . . . . . . . . Distress Signals . | . . . . . . . . . . . . . . . . . Times Spotted 330 | . 40 . . 8 40 33 61 . 33 24 19 29 5 18 . 20 Peak Tracking Total 11 | . 5 . . 4 5 4 7 . 6 6 5 5 3 10 . 11 Tactical Retreats 17 | . 1 . . . 2 1 6 . 1 4 1 1 . . . . Traps | -11 -10 -10 -10 -9 -8 -8 -8 -7 -7 -7 -7 -6 -6 -6 -6 -5 ------- Run | Yrd Mat Min Exi Min Mat Gar Mat Fac Gar Fac Gar Fac Low Low Dat Pro Traps Triggered 40 | . 4 . . . 4 10 2 . 11 1 7 1 . . . . Indirectly 8 | . . . . . 1 . . . 4 . 3 . . . . . Trap Hack Attempts . | . . . . . . . . . . . . . . . . . Triggered . | . . . . . . . . . . . . . . . . . Disarmed . | . . . . . . . . . . . . . . . . . Reprogrammed . | . . . . . . . . . . . . . . . . . Reused . | . . . . . . . . . . . . . . . . . Traps Extracted . | . . . . . . . . . . . . . . . . . Installed . | . . . . . . . . . . . . . . . . . Triggered . | . . . . . . . . . . . . . . . . . Machines | -11 -10 -10 -10 -9 -8 -8 -8 -7 -7 -7 -7 -6 -6 -6 -6 -5 ---------- Run | Yrd Mat Min Exi Min Mat Gar Mat Fac Gar Fac Gar Fac Low Low Dat Pro Machines Disabled 71 | . 32 . . . 2 8 4 . 11 2 6 6 . . . . Max in Single Turn 5 | . 3 . . . 1 2 1 . 2 2 2 5 . . . . Garrison Relay 10 | . . . . . . 4 . . 3 . 3 . . . . . Machines Repaired . | . . . . . . . . . . . . . . . . . Machines Dismantled . | . . . . . . . . . . . . . . . . . Machines Sabotaged . | . . . . . . . . . . . . . . . . . Overloaded Fab Kills . | . . . . . . . . . . . . . . . . . Hacking | -11 -10 -10 -10 -9 -8 -8 -8 -7 -7 -7 -7 -6 -6 -6 -6 -5 --------- Run | Yrd Mat Min Exi Min Mat Gar Mat Fac Gar Fac Gar Fac Low Low Dat Pro Machines Accessed 57 | . 10 . 1 . 11 3 9 2 2 8 1 6 . . 4 . Terminals 34 | . 7 . . . 8 3 5 . 2 5 1 3 . . . . Fabricators 1 | . . . . . . . . . . 1 . . . . . . Repair Stations 5 | . 1 . . . . . 2 . . 1 . 1 . . . . Recycling Units 6 | . 2 . . . 1 . 1 1 . . . 1 . . . . Scanalyzers 3 | . . . . . 1 . 1 . . . . 1 . . . . Garrison Access 3 | . . . . . 1 . . 1 . 1 . . . . . . Total Hacks 211 | . 37 . 1 . 63 7 29 2 3 26 3 14 . . 26 . Successful 131 | . 19 . 1 . 50 1 13 2 . 14 . 5 . . 26 . Failed 80 | . 18 . . . 13 6 16 . 3 12 3 9 . . . . Catastrophic 16 | . 3 . . . 2 2 1 . 2 1 3 2 . . . . Database Lockouts . | . . . . . . . . . . . . . . . . . Manual 99 | . 33 . 1 . 30 . 18 1 . 10 . 6 . . . . Terminals 116 | . 29 . . . 34 7 20 . 3 14 3 6 . . . . Fabricators 4 | . . . . . . . . . . 4 . . . . . . Repair Stations 18 | . 4 . . . . . 4 . . 7 . 3 . . . . Recycling Units 14 | . 4 . . . 3 . 2 1 . . . 4 . . . . Scanalyzers 29 | . . . . . 25 . 3 . . . . 1 . . . . Garrison Access 3 | . . . . . 1 . . 1 . 1 . . . . . . Terminal Hacks 48 | . 5 . 1 . 7 1 4 . . 4 . . . . 26 . Record 11 | . . . . . . . . . . . . . . . 11 . Part Schematic 8 | . . . . . . . . . . . . . . . 8 . Robot Schematic 4 | . . . . . . . . . . . . . . . 4 . Robot Analysis 8 | . 4 . . . 2 . 1 . . 1 . . . . . . Prototype ID Bank 4 | . . . . . . . 1 . . . . . . . 3 . Terminal Index 4 | . 1 . . . 1 . 1 . . 1 . . . . . . Alert Level 2 | . . . . . 2 . . . . . . . . . . . Locate Traps 1 | . . . . . 1 . . . . . . . . . . . Hauler Manifests 1 | . . . . . . . . . . 1 . . . . . . Zone Layout 3 | . . . . . 1 . 1 . . 1 . . . . . . Security Stations 1 | . . . . . . 1 . . . . . . . . . . Derelict Proto ID Bank 1 | . . . 1 . . . . . . . . . . . . . Fabricator Hacks 1 | . . . . . . . . . . 1 . . . . . . Load Schematic 1 | . . . . . . . . . . 1 . . . . . . Repair Station Hacks 11 | . 3 . . . . . 2 . . 5 . 1 . . . . Scan Component 7 | . 2 . . . . . 1 . . 3 . 1 . . . . Repair 4 | . 1 . . . . . 1 . . 2 . . . . . . Recycling Unit Hacks 2 | . . . . . 1 . . . . . . 1 . . . . Report Inventory 2 | . . . . . 1 . . . . . . 1 . . . . Scanalyzer 27 | . . . . . 25 . 2 . . . . . . . . . Insert Component 13 | . . . . . 12 . 1 . . . . . . . . . Analyze 14 | . . . . . 13 . 1 . . . . . . . . . Garrison Access Hacks 3 | . . . . . 1 . . 1 . 1 . . . . . . Unlock Access 3 | . . . . . 1 . . 1 . 1 . . . . . . Unauthorized Hacks 39 | . 11 . . . 16 . 5 1 . 3 . 3 . . . . Terminals 29 | . 9 . . . 14 . 4 . . 2 . . . . . . Track 2 | . . . . . 2 . . . . . . . . . . . Assimilate 2 | . . . . . 1 . . . . 1 . . . . . . Botnet 12 | . 3 . . . 5 . 3 . . 1 . . . . . . Operators 3 | . 1 . . . 1 . 1 . . . . . . . . . Skim 10 | . 5 . . . 5 . . . . . . . . . . . Fabricators 1 | . . . . . . . . . . 1 . . . . . . Prioritize 1 | . . . . . . . . . . 1 . . . . . . Repair Stations . | . . . . . . . . . . . . . . . . . Recycling Units 9 | . 2 . . . 2 . 1 1 . . . 3 . . . . Monitor 1 | . . . . . . . . . . . . 1 . . . . Reject 2 | . . . . . 1 . . . . . . 1 . . . . Recyclers 3 | . . . . . 1 . . 1 . . . 1 . . . . Tunnel 3 | . 2 . . . . . 1 . . . . . . . . . Scanalyzers . | . . . . . . . . . . . . . . . . . Garrison Access . | . . . . . . . . . . . . . . . . . Data Cores Recovered 2 | . . . . . . . . . . 1 . 1 . . . . Used . | . . . . . . . . . . . . . . . . . Hacking Detections 45 | . 9 . . . 9 3 9 . 2 7 1 5 . . . . Full Trace Events 12 | . 6 . . . 1 1 2 . . . 1 1 . . . . Feedback Events 2 | . 1 . . . . . 1 . . . . . . . . . Corruption 2 | . 1 . . . . . 1 . . . . . . . . . Feedback Blocked . | . . . . . . . . . . . . . . . . . Robot Schematics Acquired 4 | . . . . . . . . . . . . . . . 4 . Robots Built . | . . . . . . . . . . . . . . . . . Authchips . | . . . . . . . . . . . . . . . . . Time . | . . . . . . . . . . . . . . . . . Total Robot Build Rating . | . . . . . . . . . . . . . . . . . Part Schematics Acquired 21 | . . . . . 12 . 1 . . . . . . . 8 . Parts Built . | . . . . . . . . . . . . . . . . . Authchips . | . . . . . . . . . . . . . . . . . Time . | . . . . . . . . . . . . . . . . . Total Part Build Rating . | . . . . . . . . . . . . . . . . . Parts Repaired 4 | . 1 . . . . . 1 . . 2 . . . . . . Time 153 | . 26 . . . . . 22 . . 105 . . . . . . Parts Recycled . | . . . . . . . . . . . . . . . . . Recycled Matter . | . . . . . . . . . . . . . . . . . Retrieved Matter . | . . . . . . . . . . . . . . . . . Retrieved Components . | . . . . . . . . . . . . . . . . . Parts Scanalyzed 13 | . . . . . 12 . 1 . . . . . . . . . Part Schematics Acquired 13 | . . . . . 12 . 1 . . . . . . . . . Parts Damaged . | . . . . . . . . . . . . . . . . . Bothacking | -11 -10 -10 -10 -9 -8 -8 -8 -7 -7 -7 -7 -6 -6 -6 -6 -5 ------------ Run | Yrd Mat Min Exi Min Mat Gar Mat Fac Gar Fac Gar Fac Low Low Dat Pro Used RIF Installer 3 | . . . . . . 1 . . 1 . 1 . . . . . Hotswap 1 | . . . . . . . . . . . 1 . . . . . Command Fork 1 | . . . . . . . . . 1 . . . . . . . Robots Hacked 31 | . 3 . . . 5 2 8 . 1 3 . 9 . . . . Non-combat 18 | . 3 . . . 5 . 3 . . 2 . 5 . . . . Combat 13 | . . . . . . 2 5 . 1 1 . 4 . . . . Robot Hacks Applied 36 | . 6 . . . 7 2 8 . 1 3 . 9 . . . . parse_system 2 | . 1 . . . 1 . . . . . . . . . . . no_distress 6 | . 2 . . . 3 . 1 . . . . . . . . . find_chute 2 | . . . . . . . . . . . . 2 . . . . map_earth 1 | . . . . . . . . . . . . 1 . . . . find_recycling 7 | . 1 . . . 2 . 2 . . 1 . 1 . . . . find_station 1 | . . . . . . . . . . 1 . . . . . . check_alert 3 | . 2 . . . 1 . . . . . . . . . . . map_route 1 | . . . . . . . . . . . . 1 . . . . overwrite_iff 1 | . . . . . . . . . 1 . . . . . . . streamctrl_high 4 | . . . . . . . 3 . . . . 1 . . . . formatsys_high 8 | . . . . . . 2 2 . . 1 . 3 . . . . Relay Couplers Released 40 | . . . . . . 16 . . 9 4 11 . . . . . Machine Destruction 36 | . . . . . . 16 . . 9 . 11 . . . . . Programmers 4 | . . . . . . . . . . 4 . . . . . . Attached 11 | . . . . . . 2 3 . 2 1 . 3 . . . . Fabnet Peak Effective % . | . . . . . . . . . . . . . . . . . Robots Rewired 10 | . . . . . . 2 . . . . 6 . . 2 . . Allies Hacked . | . . . . . . . . . . . . . . . . . Hacks Repelled . | . . . . . . . . . . . . . . . . . Allies | -11 -10 -10 -10 -9 -8 -8 -8 -7 -7 -7 -7 -6 -6 -6 -6 -5 -------- Run | Yrd Mat Min Exi Min Mat Gar Mat Fac Gar Fac Gar Fac Low Low Dat Pro Total Allies 26 | . . . . . 1 4 5 . 1 1 6 5 . 2 . 1 Largest Group 6 | . . . . . 1 2 1 . 1 1 6 4 . 2 2 3 Highest-Rated Group 154 | . . . . . 26 45 21 . 20 16 131 75 . 58 58 154 Highest-Rated Ally 96 | . . . . . 26 25 21 . 20 16 39 47 . 29 29 96 Total Orders 3 | . . . . . . . . . . . . 3 . . . . STAY 2 | . . . . . . . . . . . . 2 . . . . FOLLOW 1 | . . . . . . . . . . . . 1 . . . . Ally Attacks 124 | . . . . . . 14 22 . 2 10 17 37 . . . 22 Total Damage 2128 | . . . . . . 313 385 . 74 120 235 450 . . . 551 Kills 19 | . . . . . . 2 4 . 1 1 3 3 . . . 5 Allies Corrupted 2 | . . . . . . . . . . . 1 . . . . 1 Allies Melted 2 | . . . . . . . 1 . . 1 . . . . . . Intel | -11 -10 -10 -10 -9 -8 -8 -8 -7 -7 -7 -7 -6 -6 -6 -6 -5 ------- Run | Yrd Mat Min Exi Min Mat Gar Mat Fac Gar Fac Gar Fac Low Low Dat Pro Robot Analysis Total 8 | . 4 . . . 2 . 1 . . 1 . . . . . . Derelict Logs Recovered 4 | . . 1 . 1 . . . . . . . . . 1 . 1 Drone Launches . | . . . . . . . . . . . . . . . . . Drone Recoveries . | . . . . . . . . . . . . . . . . . Exploration | -11 -10 -10 -10 -9 -8 -8 -8 -7 -7 -7 -7 -6 -6 -6 -6 -5 ------------- Run | Yrd Mat Min Exi Min Mat Gar Mat Fac Gar Fac Gar Fac Low Low Dat Pro Turns Passed 26555 | 93 5202 53 403 546 2141 2044 1796 234 2070 1473 1950 1690 580 3193 356 2731 Spaces Moved 11336 | 72 2169 40 297 341 1315 1391 741 138 1153 789 1107 827 258 283 90 325 Core 215 | 3 . . . . . . . . . . . . . 104 . 108 Treads 5982 | . 1402 . . . . . 656 138 404 789 1107 827 258 94 90 217 Legs . | . . . . . . . . . . . . . . . . . Wheels 4600 | 69 767 40 297 341 861 1391 85 . 749 . . . . . . . Hover . | . . . . . . . . . . . . . . . . . Flight 539 | . . . . . 454 . . . . . . . . 85 . . Fastest Speed 39 | 50 90 135 135 130 39 108 115 160 145 154 154 156 157 235 400 400 Average Speed 200 | 87 202 135 135 134 116 112 171 160 159 154 156 156 195 1097 400 825 Slowest Speed 1750 | 90 480 135 135 175 595 130 400 160 240 154 157 157 235 1555 400 1750 Overloaded Moves . | . . . . . . . . . . . . . . . . . Propulsion Burnouts . | . . . . . . . . . . . . . . . . . Robots Hopped . | . . . . . . . . . . . . . . . . . Cave-ins Triggered 1 | . . . . . . . . . . . . . . 1 . . Exploration Rate (%) 50 | 5 100 8 68 55 60 86 50 4 76 20 76 13 60 48 70 64 Regions Visited 16 Branch Regions 7 Pre-discovered Areas 7 | . 2 . . 1 1 . 1 . . . . . . . 1 1 Known Exits Taken 10 | . 1 1 1 1 1 . 1 1 . 1 . 1 1 . . . Unknown Exits Taken 3 | 1 . . . . . . . . . . . . . 1 1 . Scrap Searched 6 | . . . . 2 . . . . . . . . 1 2 . 1 Spaces Dug 26 | . . . . 7 10 . . . . . . . . . . 9 Terrain Destroyed 1172 | . 393 . . 113 74 148 95 . 23 26 59 54 27 90 . 70 Melee . | . . . . . . . . . . . . . . . . . Projectile 4 | . . . . . 1 . . . . 2 . 1 . . . . AOE 1168 | . 393 . . 113 73 148 95 . 23 24 59 53 27 90 . 70 Terrain Rammed . | . . . . . . . . . . . . . . . . . Walls Destroyed . | . . . . . . . . . . . . . . . . . Machines Disabled . | . . . . . . . . . . . . . . . . . Actions | -11 -10 -10 -10 -9 -8 -8 -8 -7 -7 -7 -7 -6 -6 -6 -6 -5 --------- Run | Yrd Mat Min Exi Min Mat Gar Mat Fac Gar Fac Gar Fac Low Low Dat Pro Total 13881 | 88 2601 39 301 383 1746 1776 1089 152 1297 967 1235 1142 289 332 89 355 Wait 861 | . 74 . . . 165 194 125 . 5 91 10 193 1 2 . 1 Move 11317 | 71 2168 39 296 340 1314 1389 740 137 1151 788 1105 826 257 282 89 325 Hop . | . . . . . . . . . . . . . . . . . Pick Up 124 | 5 32 . 1 4 25 13 7 2 6 4 3 12 2 5 . 3 Fast Attach 98 | 7 6 . . . 26 4 13 4 9 8 2 12 . 5 . 2 Attach 35 | . 6 . . 1 2 2 3 2 2 . 2 6 1 6 . 2 Detach 16 | . 1 . . . 2 1 . 1 2 3 . 3 . 2 . 1 Swap 190 | . 30 . . 1 31 25 34 2 12 11 7 25 4 5 . 3 Drop 149 | . 17 . 4 4 49 12 17 4 7 10 3 17 . 1 . 4 Fire 861 | 5 252 . . 33 121 55 143 . 55 47 40 48 24 24 . 14 Melee 25 | . 6 . . . 11 8 . . . . . . . . . . Ram . | . . . . . . . . . . . . . . . . . Kick . | . . . . . . . . . . . . . . . . . Crush 21 | . 9 . . . . . 7 . . 5 . . . . . . Escape Stasis 120 | . . . . . . 72 . . 48 . . . . . . . Rewire 64 | . . . . . . 1 . . . . 63 . . . . . Trap . | . . . . . . . . . . . . . . . . . Miscellaneous . | . . . . . . . . . . . . . . . . . Route ------- -11/Scrapyard -10/Materials (discovered 5 exits: *Mat x3 / *Min / *Sub) -10/Mines (discovered 3 exits: *Mat / *Exi / Sub) -10/Exiles (discovered 2 exits: *Min x2) -9/Mines (discovered 2 exits: *Mat x2) -8/Materials (discovered 4 exits: *Fac x3 / Gar) -8/Garrison (discovered 2 exits: *Mat x2) -8/Materials (discovered 3 exits: *Fac x3) -7/Factory -7/Garrison (discovered 3 exits: *Fac x3) -7/Factory (discovered 3 exits: [*Sto] / [*Low] / Gar) -7/Garrison (discovered 4 exits: *Fac x3 / [*Fac]) -6/Factory -6/Lower Caves -6/Lower Caves -6/Data Miner -5/Proximity Caves (discovered 1 exit: [*Fac]) History --------- Turn | Location | Event 26 | -11/Scrapyard | Discovered new exit (range 15) 94 | -11/Scrapyard | Entered Materials 303 | -10/Materials | Build established: Mutant 674 | -10/Materials | Discovered new exit (range 15) 1046 | -10/Materials | Discovered new exit (range 13) 1441 | -10/Materials | Discovered new exit (range 16) 3632 | -10/Materials | Discovered new exit (range 10) 4187 | -10/Materials | Core integrity fell below 50% 4202 | -10/Materials | Core integrity fell below 20% 4234 | -10/Materials | Lost 7 parts (1p2n2u2w) 4289 | -10/Materials | Repaired Grenade Launcher 4448 | -10/Materials | Discovered new exit (range 10) 4906 | -10/Materials | Identified exit to Materials 5123 | -10/Materials | Identified exit to Mines 5156 | -10/Materials | Identified exit to Subcaves 5296 | -10/Materials | Entered Mines 5296 | -10/Mines | Discovered exit to Materials (range 14) 5310 | -10/Mines | Met a Derelict bent on vengeance 5342 | -10/Mines | Deemed a non-threat by the Exiles lab entrance 5344 | -10/Mines | Discovered new exit (range 5) 5348 | -10/Mines | Identified exit to Exiles 5349 | -10/Mines | Entered Exiles 5367 | -10/Exiles | Discovered new exit (range 15) 5385 | -10/Exiles | Identified exit to Mines 5410 | -10/Exiles | Met 8R-AWN 5433 | -10/Exiles | Met EX-HEX 5472 | -10/Exiles | Met EX-BIN 5491 | -10/Exiles | Aligned with FarCom system 5493 | -10/Exiles | Given EX-Vault access code 5530 | -10/Exiles | Opened EX-Vault 5551 | -10/Exiles | Found Flying Fortress v7 5581 | -10/Exiles | Warned to stay clear of 0b10 Research branches 5627 | -10/Exiles | Met EX-DEC 5739 | -10/Exiles | Discovered exit to Mines (range 12) 5752 | -10/Exiles | Left Exiles lab with Flying Fortress v7 5752 | -10/Exiles | Entered Mines 5760 | -9/Mines | Discovered new exit (range 10) 5779 | -9/Mines | Identified exit to Materials 5816 | -9/Mines | Learned location of Zion (-7) 5864 | -9/Mines | Discovered exit to Materials (range 10) 6163 | -9/Mines | Excavation squad dispatched 6163 | -9/Mines | A large section of the Mines collapsed 6298 | -9/Mines | Entered Materials 6298 | -8/Materials | Evolved 4 slots: Power x1, Propulsion x3 7388 | -8/Materials | Garrison activated, responded to threat 7743 | -8/Materials | Discovered new exit (range 16) 8243 | -8/Materials | Learned Factory emergency access door positions 8285 | -8/Materials | Identified exit to Factory 8315 | -8/Materials | Learned location of 1 exit from Lower Caves 8337 | -8/Materials | Learned 4 Factory zone layouts 8351 | -8/Materials | Learned Storage stockpile data 8357 | -8/Materials | Learned Factory emergency access door positions 8438 | -8/Materials | Identified exit to Garrison 8439 | -8/Materials | Entered Garrison 8635 | -8/Garrison | Triggered checkpoint 8798 | -8/Garrison | Discovered new exit (range 14) 8839 | -8/Garrison | Triggered checkpoint 8862 | -8/Garrison | Garrison Relay disabled 8902 | -8/Garrison | Triggered checkpoint 8914 | -8/Garrison | Triggered checkpoint 8938 | -8/Garrison | Destroyed 8 combat bots 9020 | -8/Garrison | Installed Relay Interface Framework 9057 | -8/Garrison | Discovered new exit (range 12) 9197 | -8/Garrison | Learned Materials security intel 9242 | -8/Garrison | Triggered checkpoint 9268 | -8/Garrison | P-60 Hacker assimilated allied Defender 3a 9303 | -8/Garrison | Destroyed 7 combat bots 9394 | -8/Garrison | Garrison Relay disabled 9573 | -8/Garrison | Triggered checkpoint 9603 | -8/Garrison | Garrison Relay disabled 9905 | -8/Garrison | Build established: Bothacker-Mutant 9947 | -8/Garrison | Triggered checkpoint 10075 | -8/Garrison | Triggered checkpoint 10483 | -8/Garrison | Entered Materials 11283 | -8/Materials | First assault squad dispatched 11364 | -8/Materials | Build established: Mutant 11380 | -8/Materials | Core integrity fell below 50% 11454 | -8/Materials | Lost 5 parts (2p3n) 11615 | -8/Materials | Repaired Med. Treads 11749 | -8/Materials | Build established: Scavenger-Mutant 12112 | -8/Materials | System corruption reached 10% 12193 | -8/Materials | Destroyed 7 combat bots 12199 | -8/Materials | Lost 3 parts (1n1u1w) 12279 | -8/Materials | Entered Factory 12279 | -7/Factory | Evolved 2 slots: Propulsion x1, Utility x1 12512 | -7/Factory | Identified exit to Garrison 12513 | -7/Factory | Entered Garrison 12569 | -7/Garrison | Triggered checkpoint 12585 | -7/Garrison | Garrison Relay disabled 12794 | -7/Garrison | Triggered checkpoint 12985 | -7/Garrison | Triggered checkpoint 13063 | -7/Garrison | Triggered checkpoint 13147 | -7/Garrison | Discovered new exit (range 9) 13203 | -7/Garrison | Triggered checkpoint 13285 | -7/Garrison | Build established: Mutant 13341 | -7/Garrison | Discovered new exit (range 12) 13386 | -7/Garrison | Triggered checkpoint 13713 | -7/Garrison | Triggered checkpoint 13827 | -7/Garrison | Triggered checkpoint 13897 | -7/Garrison | Expanded RIF knowledge: Command Fork 13996 | -7/Garrison | Discovered new exit (range 12) 14093 | -7/Garrison | Triggered checkpoint 14436 | -7/Garrison | Spotted B-75 Beast 14479 | -7/Garrison | Destroyed B-75 Beast 14583 | -7/Garrison | Entered Factory 14740 | -7/Factory | Build established: Scavenger-Mutant 15156 | -7/Factory | Repaired Broken Proton Missile Launcher 15201 | -7/Factory | Repaired Proton Missile Launcher 15484 | -7/Factory | Discovered new exit (range 16) 15518 | -7/Factory | Build established: Mutant 15736 | -7/Factory | Found Prototype Launcher 15736 | -7/Factory | Identified Rocket Array 15783 | -7/Factory | First assault squad dispatched 15959 | -7/Factory | Discovered new exit (range 11) 16053 | -7/Factory | Identified exit to Garrison 16056 | -7/Factory | Entered Garrison 16450 | -7/Garrison | Triggered checkpoint 16457 | -7/Garrison | Garrison Relay disabled 16532 | -7/Garrison | Triggered checkpoint 16532 | -7/Garrison | Triggered checkpoint 16542 | -7/Garrison | Triggered checkpoint 16578 | -7/Garrison | Destroyed 9 combat bots 16617 | -7/Garrison | Expanded RIF knowledge: Hotswap 16629 | -7/Garrison | Discovered new exit (range 13) 16663 | -7/Garrison | Build established: Scavenger-Mutant 16981 | -7/Garrison | Discovered new exit (range 15) 17022 | -7/Garrison | Triggered checkpoint 17064 | -7/Garrison | Triggered checkpoint 17088 | -7/Garrison | Discovered new exit (range 6) 17160 | -7/Garrison | Garrison Relay disabled 17404 | -7/Garrison | Triggered checkpoint 17417 | -7/Garrison | Discovered new exit (range 14) 17468 | -7/Garrison | Garrison Relay disabled 18006 | -7/Garrison | Entered Factory 18006 | -6/Factory | Accompanied by 4 allies 18006 | -6/Factory | Evolved 2 slots: Utility x2 18329 | -6/Factory | Lost 3 allies 18356 | -6/Factory | First assault squad dispatched 18482 | -6/Factory | Discovered new exit (range 5) 19667 | -6/Factory | Identified exit to Lower Caves 19696 | -6/Factory | Entered Lower Caves 19697 | -6/Lower Caves | Encountered a Warlord checkpoint 19697 | -6/Lower Caves | Identified exit to Lower Caves 19905 | -6/Lower Caves | Spotted B-75 Beast 19945 | -6/Lower Caves | Destroyed B-75 Beast 19965 | -6/Lower Caves | Lost 3 parts (1p2n) 20276 | -6/Lower Caves | Entered another Lower Caves area 20339 | -6/Lower Caves | Encountered a Warlord checkpoint 20495 | -6/Lower Caves | Lost 4 parts (1p3n) 20657 | -6/Lower Caves | Learned 4 Factory zone layouts 20752 | -6/Lower Caves | Build established: Mutant 21835 | -6/Lower Caves | Lost 7 parts (1p1n2u3w) 22070 | -6/Lower Caves | Attracted the attention of an 0b10 outpost 22074 | -6/Lower Caves | Core integrity fell below 50% 22115 | -6/Lower Caves | Destroyed 9 combat bots 22161 | -6/Lower Caves | Crushed by falling debris 23413 | -6/Lower Caves | Discovered new exit (range 11) 23469 | -6/Lower Caves | Entered Data Miner 23469 | -6/Data Miner | Accompanied by 2 allies 23469 | -6/Data Miner | Discovered new exit (range 6) 23553 | -6/Data Miner | Met Data Miner 23677 | -6/Data Miner | Learned location of Section 7 (-2) 23677 | -6/Data Miner | Acquired the access code to Warlord's prototype stash 23713 | -6/Data Miner | Received God Mode back door access code from Data Miner 23825 | -6/Data Miner | Entered Proximity Caves 23825 | -5/Proximity Caves | Accompanied by 2 allies 23911 | -5/Proximity Caves | Escorted by Enhanced Grunt 24307 | -5/Proximity Caves | Learned location of Warlord (-5) 24728 | -5/Proximity Caves | Core integrity fell below 20% 24764 | -5/Proximity Caves | Lost 6 parts (1p1n1u3w) 26456 | -5/Proximity Caves | Discovered new exit (range 7) 26550 | -5/Proximity Caves | Attracted the attention of an 0b10 outpost 26556 | -5/Proximity Caves | Destroyed by G-67 Veteran with Plasma Rifle Last Messages --------------- 26448_ YO,JLW % S:XZE PBWIB 26456_ EXIT=FOUND 26475_ System corrupted: Matter fused (-8). 26499_ System corrupted: Energy discharge (-29). 26547_ G-50 Soldier springs to life. 26548_ S-27 Virus springs to life. 26548_ G-50 Soldier springs to life. 26550_ Y-72 Warden: "DETECTED UNIDENTIFIED DERELICT." 26554_ Y-72 Warden: "REQUESTING BACKUP." 26554_ C-30 ARC bursts open, deploying its payload. 26554_ G-67 Veteran unfolds itself. 26554_ L-41 Fighter unfolds itself. 26554_ G-50 Soldier unfolds itself. 26554_ I-47 Archangel unfolds itself. 26554_ Hrd. Heavy Armor Plating destroyed. 26554_ Gauss Rifle destroyed. 26554_ Critical hit (Burn: +37). 26555_ S-27 Virus destroyed. Map ----- +----------------------------------------------------+ | ?????????????????????????????????????????????????? | | ?????????????????????????????????????????????????? | | ?????????????????????????????????????????????????? | | ?????????????????????????????????????????????????? | | ?????????????????????????????????????????????????? | | ?????????????????????????????????????????????????? | | ?????????????????????????????????????????????????? | | ?????????????????????????????????????????????????? | | ?????????????????????????????????????????????????? | | ?????????????????????????????????????????????????? | | ?????????????????????????????????????????????????? | | ?????????????????????????????????????????????????? | | ?????????????????????????????????????????????????? | | ?????????????????????????????????????????????????? | | ?????????????????????????????????????????????????? | | ?????????????????????????????????????????????????? | | ?????????????????????????????????????????????????? | | ?????????????????????????????????????????????????? | | ?????????????????????????????????????????????????? | | ???????????????????????####?????????????###??????? | | ????????????????????#### ?????????????# ##?????? | | ????????????????##### #?????????????# ##????? | | ????????????????? g #????????????## #????? | | ???????????????????# i